fUST/lending_fUST_20240121
["ID","MTS","AMOUNT","RATE_DAILY","PERIOD"]
[312373479,1705841440754,-500.0,0.00027397,2]
[312373482,1705841440764,-500.0,0.00027397,2]
[312373484,1705841440773,-500.0,0.00027397,2]
[312373487,1705841440782,-500.0,0.00027397,2]
[312373490,1705841440792,-500.0,0.00027397,2]
[312373492,1705841440801,-1356.36,0.00027397,2]
[312373494,1705841440811,-638.48739459,0.00027671,2]
[312373497,1705841440821,-500.0,0.00027671,2]
[312373500,1705841440831,-500.0,0.00027671,2]
[312373502,1705841440840,-500.0,0.00027671,2]
[312373503,1705841440849,-468.92844637,0.00027671,2]
[312373505,1705841440859,-500.0,0.00027671,2]
[312373506,1705841440868,-500.0,0.00027671,2]
[312373508,1705841440877,-500.0,0.00027671,2]
[312373510,1705841440887,-500.0,0.00027671,2]
[312373511,1705841440896,-500.0,0.00027671,2]
[312373512,1705841440905,-500.0,0.00027671,2]
[312373513,1705841440914,-500.0,0.00027671,2]
[312373514,1705841440923,-500.0,0.00027671,2]
[312373515,1705841440931,-500.0,0.00027671,2]
[312373516,1705841440940,-500.0,0.00027671,2]
[312373517,1705841440949,-500.0,0.00027671,2]
[312373518,1705841440958,-500.0,0.00027671,2]
[312373519,1705841440967,-500.0,0.00027671,2]
[312373520,1705841440976,-500.0,0.00027671,2]
[312373521,1705841440984,-500.0,0.00027671,2]
[312373522,1705841440993,-500.0,0.00027671,2]
[312373523,1705841441002,-500.0,0.00027671,2]
[312373524,1705841441012,-500.0,0.00027671,2]
[312373525,1705841441021,-500.0,0.00027671,2]
[312373526,1705841441031,-523.9,0.00027671,2]
[312373527,1705841441040,-500.0,0.00027671,2]
[312373528,1705841441049,-500.0,0.00027671,2]
[312373529,1705841441058,-1000.0,0.00027671,2]
[312373530,1705841441067,-500.0,0.00027671,2]
[312373531,1705841441076,-500.0,0.00027671,2]
[312373532,1705841441086,-603.18,0.00027671,2]
[312373533,1705841441095,-1758.32,0.00027671,2]
[312373534,1705841441105,-669.87,0.00027671,2]
[312373535,1705841441114,-500.0,0.00027671,2]
[312373536,1705841441124,-500.0,0.00027671,2]
[312373537,1705841441133,-500.0,0.00027671,2]
[312373538,1705841441142,-500.0,0.00027671,2]
[312373539,1705841441151,-798.73,0.00027671,2]
[312373540,1705841441160,-500.0,0.00027671,2]
[312373541,1705841441170,-500.0,0.00027671,2]
[312373542,1705841441179,-500.0,0.00027671,2]
[312373543,1705841441188,-500.0,0.00027671,2]
[312373544,1705841441197,-500.0,0.00027671,2]
[312373545,1705841441206,-793.54,0.00027671,2]
[312373546,1705841441215,-500.0,0.00027671,2]
[312373547,1705841441224,-500.0,0.00027671,2]
[312373548,1705841441233,-501.06,0.00027671,2]
[312373549,1705841441242,-500.0,0.00027671,2]
[312373550,1705841441254,-500.0,0.00027671,2]
[312373551,1705841441263,-903.46,0.00027671,2]
[312373552,1705841441273,-500.0,0.00027671,2]
[312373553,1705841441282,-500.0,0.00027671,2]
[312373554,1705841441293,-500.0,0.00027671,2]
[312373555,1705841441303,-500.0,0.00027671,2]
[312373556,1705841441311,-500.0,0.00027671,2]
[312373557,1705841441320,-500.0,0.00027671,2]
[312373558,1705841441329,-500.0,0.00027671,2]
[312373559,1705841441340,-604.14,0.00027671,2]
[312373560,1705841441349,-406.48648431,0.00027671,2]
[312373561,1705841441358,-500.0,0.00027671,2]
[312373562,1705841441367,-500.0,0.00027671,2]
[312373563,1705841441375,-751.39,0.00027671,2]
[312373564,1705841441385,-513.67630962,0.00027671,2]
[312373565,1705841441394,-500.0,0.00027671,2]
[312373566,1705841441404,-500.0,0.00027671,2]
[312373567,1705841441413,-500.0,0.00027671,2]
[312373568,1705841441422,-500.0,0.00027671,2]
[312373569,1705841441431,-500.0,0.00027671,2]
[312373570,1705841441440,-1549.47,0.00027671,2]
[312373571,1705841441449,-500.0,0.00027671,2]
[312373572,1705841441458,-500.0,0.00027671,2]
[312373573,1705841441467,-593.04,0.00027671,2]
[312373574,1705841441476,-2078.69,0.00027671,2]
[312373575,1705841441486,-500.0,0.00027671,2]
[312373576,1705841441495,-500.0,0.00027671,2]
[312373577,1705841441504,-500.0,0.00027671,2]
[312373578,1705841441513,-2071.85,0.00027671,2]
[312373579,1705841441522,-637.24,0.00027671,2]
[312373580,1705841441531,-500.0,0.00027671,2]
[312373582,1705841441540,-1065.23,0.00027671,2]
[312373584,1705841441550,-616.73,0.00027671,2]
[312373585,1705841441558,-530.91,0.00027671,2]
[312373587,1705841441567,-500.0,0.00027671,2]
[312373589,1705841441577,-19852.34,0.00027671,2]
[312373590,1705841441586,-892.04,0.00027671,2]
[312373591,1705841441595,-500.0,0.00027671,2]
[312373592,1705841441604,-690.49,0.00027671,2]
[312373594,1705841441614,-500.0,0.00027671,2]
[312373596,1705841441623,-500.0,0.00027671,2]
[312373597,1705841441632,-500.0,0.00027671,2]
[312373599,1705841441641,-500.0,0.00027671,2]
[312373600,1705841441651,-500.0,0.00027671,2]
[312373601,1705841441660,-1577.23,0.00027671,2]
[312373602,1705841441669,-500.0,0.00027671,2]
[312373604,1705841441678,-500.0,0.00027671,2]
[312373605,1705841441688,-4753.79,0.00027671,2]
[312373607,1705841441697,-1494.61,0.00027671,2]
[312373609,1705841441706,-500.0,0.00027671,2]
[312373611,1705841441715,-555.83,0.00027671,2]
[312373612,1705841441725,-1054.35,0.00027671,2]
[312373613,1705841441734,-500.0,0.00027671,2]
[312373615,1705841441743,-503.48571087,0.00027671,2]
[312373617,1705841441752,-11662.09,0.00027671,2]
[312373618,1705841441762,-754.05,0.00027671,2]
[312373619,1705841441770,-500.0,0.00027671,2]
[312373620,1705841441779,-951.15,0.00027671,2]
[312373621,1705841441788,-6865.67,0.00027671,2]
[312373622,1705841441798,-980.23,0.00027671,2]
[312373623,1705841441807,-500.0,0.00027671,2]
[312373624,1705841441816,-6917.5,0.00027671,2]
[312373625,1705841441826,-500.0,0.00027671,2]
[312373626,1705841441835,-628.4,0.00027671,2]
[312373627,1705841441844,-965.12,0.00027671,2]
[312373628,1705841441853,-2378.58,0.00027671,2]
[312373629,1705841441862,-1686.24,0.00027671,2]
[312373630,1705841441871,-500.0,0.00027671,2]
[312373631,1705841441880,-569.04895563,0.00027671,2]
[312373632,1705841441889,-500.0,0.00027671,2]
[312373633,1705841441898,-500.0,0.00027671,2]
[312373634,1705841441908,-594.64113773,0.00027671,2]
[312373635,1705841441917,-237.28341523,0.00027671,2]
[312373636,1705841441926,-4753.42,0.00027671,2]
[312373637,1705841441935,-500.0,0.00027671,2]
[312373638,1705841441944,-919.47785667,0.00027671,2]
[312373639,1705841442050,-73.80214333,0.00027671,2]
[312373640,1705841442059,-500.0,0.00027671,2]
[312373641,1705841442069,-6579.26,0.00027671,2]
[312373642,1705841442078,-3849.65,0.00027671,2]
[312373643,1705841442088,-500.0,0.00027671,2]
[312373644,1705841442097,-500.0,0.00027671,2]
[312373645,1705841442106,-500.0,0.00027671,2]
[312373646,1705841442115,-716.36949822,0.00027671,2]
[312373647,1705841442275,-500.0,0.00027397,2]
[312373648,1705841442285,-886.54050178,0.00027671,2]
[312373649,1705841442294,-946.25,0.00027671,2]
[312373650,1705841442304,-500.0,0.00027671,2]
[312373651,1705841442315,-500.0,0.00027671,2]
[312373652,1705841442323,-500.0,0.00027671,2]
[312373653,1705841442333,-500.0,0.00027671,2]
[312373654,1705841442342,-500.0,0.00027671,2]
[312373655,1705841442352,-1137.37,0.00027671,2]
[312373656,1705841442361,-998.21,0.00027671,2]
[312373657,1705841442370,-593.63,0.00027671,2]
[312373658,1705841442379,-500.0,0.00027671,2]
[312373659,1705841442388,-500.0,0.00027671,2]
[312373660,1705841442397,-500.0,0.00027671,2]
[312373661,1705841442407,-500.0,0.00027671,2]
[312373662,1705841442416,-500.0,0.00027671,2]
[312373663,1705841442425,-1356.36,0.00027671,2]
[312373664,1705841442434,-176.83895636,0.00027708,2]
[312373665,1705841442443,-500.0,0.00027923,2]
[312373666,1705841442453,-496.4743012,0.00027923,2]
[312373667,1705841442462,-631.5949177,0.00027923,2]
[312373668,1705841442471,-500.0,0.00027923,2]
[312373669,1705841442480,-257.04842263,0.00027923,2]
[312373670,1705841442822,-242.95157737,0.00027923,2]
[312373671,1705841442831,-500.0,0.00027923,2]
[312373672,1705841442843,-500.0,0.00027923,2]
[312373673,1705841442852,-296.71620604,0.00027923,2]
[312373674,1705841442861,-500.0,0.00027923,2]
[312373675,1705841442871,-500.0,0.00027923,2]
[312373676,1705841442881,-500.0,0.00027923,2]
[312373677,1705841442890,-500.0,0.00027923,2]
[312373678,1705841442899,-500.0,0.00027923,2]
[312373679,1705841442908,-500.0,0.00027923,2]
[312373680,1705841442918,-500.0,0.00027923,2]
[312373681,1705841442927,-500.0,0.00027923,2]
[312373682,1705841442936,-405.63662955,0.00027923,2]
[312373683,1705841442945,-500.0,0.00027923,2]
[312373684,1705841442954,-500.0,0.00027923,2]
[312373685,1705841442963,-500.0,0.00027923,2]
[312373686,1705841442973,-500.0,0.00027923,2]
[312373687,1705841442982,-500.0,0.00027923,2]
[312373689,1705841442991,-500.0,0.00027923,2]
[312373691,1705841443000,-251.60885687,0.00027923,2]
[312373799,1705841446726,-154.7215013,0.00027396,4]
[312373800,1705841446736,-500.0,0.00027397,2]
[312373802,1705841446745,-500.0,0.00027397,2]
[312373804,1705841446754,-500.0,0.00027671,2]
[312373806,1705841446764,-248.39114313,0.00027923,2]
[312373808,1705841446773,-500.0,0.00027923,2]
[312373810,1705841446783,-500.0,0.00027923,2]
[312373811,1705841446792,-500.0,0.00027923,2]
[312373813,1705841446801,-500.0,0.00027923,2]
[312373815,1705841446811,-500.0,0.00027923,2]
[312373816,1705841446820,-500.0,0.00027923,2]
[312373817,1705841446829,-500.0,0.00027923,2]
[312373818,1705841446837,-500.0,0.00027923,2]
[312373819,1705841446846,-500.0,0.00027923,2]
[312373820,1705841446856,-500.0,0.00027923,2]
[312373821,1705841446864,-406.43959741,0.00027923,2]
[312373822,1705841446873,-500.0,0.00027923,2]
[312373823,1705841446882,-500.0,0.00027923,2]
[312373824,1705841446890,-500.0,0.00027923,2]
[312373825,1705841446899,-500.0,0.00027923,2]
[312373826,1705841446908,-500.0,0.00027923,2]
[312373827,1705841446917,-50000.0,0.00027924,5]
[312373828,1705841446925,-33545.5667584,0.00027924,5]
[312373832,1705841489105,200.0,0.00030136,15]
[312373874,1705841658094,2134.16600255,0.0002,5]
[312373884,1705841789254,200.0,0.00029518,15]
[312373886,1705841842373,1000.0,0.00027923,14]
[312373887,1705841842655,1000.0,0.00027923,14]
[312373888,1705841842879,675.61468555,0.00027923,14]
[312373893,1705842028190,180.2784987,0.00022,4]
[312373922,1705842088937,200.0,0.00027679,15]
[312373923,1705842089705,280.0,0.00030446,15]
[312373929,1705842389063,200.0,0.00027674,15]
[312373930,1705842389825,280.0,0.00030442,15]
[312373931,1705842394037,662.0,0.00031,10]
[312373932,1705842419206,-1242.31465176,0.00024021,2]
[312373933,1705842419229,-323.06508436,0.00024022,2]
[312373934,1705842419252,-154.73694719,0.00024023,4]
[312373935,1705842419273,-154.73694719,0.00024023,2]
[312373936,1705842419295,-154.73694719,0.00024024,2]
[312373937,1705842442101,-181.321518,0.00024042,2]
[312373938,1705842442123,-271.420818,0.00024138,2]
[312373939,1705842442145,-154.73694719,0.00024654,4]
[312373940,1705842442166,-170.25272059,0.00025063,2]
[312373941,1705842442187,-7192.8991127,0.00025157,2]
[312373942,1705842452079,-885.1381514,0.00025157,2]
[312374021,1705842631801,-154.73694719,0.00024654,4]
[312374022,1705842631811,-2073.50516209,0.00025161,2]
[312374023,1705842631822,-2618.27259128,0.00025161,2]
[312374054,1705842637817,-465.85500015,0.00025161,2]
[312374055,1705842637927,-17814.2423424,0.00025161,2]
[312374057,1705842637937,-5575.7223412,0.00025162,2]
[312374059,1705842637946,-186.9953691,0.00025272,2]
[312374061,1705842637955,-170.127689,0.00025351,2]
[312374063,1705842637965,-5801.419096,0.00025568,2]
[312374065,1705842637974,-838.83427445,0.00025824,2]
[312374067,1705842637983,-183.327605,0.000261,2]
[312374068,1705842637992,-251.60887426,0.00027297,2]
[312374070,1705842638001,-2046.87,0.00027385,3]
[312374071,1705842638010,-3632.06,0.00027385,3]
[312374073,1705842638020,-3026.72,0.00027385,3]
[312374075,1705842638030,-2522.26,0.00027385,3]
[312374077,1705842638039,-247.06304696,0.00027393,2]
[312374079,1705842638049,-155.51731762,0.00027393,2]
[312374081,1705842638058,-267.82396727,0.00027393,2]
[312374083,1705842638067,-1244.83263995,0.00027393,2]
[312374085,1705842638077,-549.40930506,0.00027393,2]
[312374087,1705842638086,-1259.89321397,0.00027394,2]
[312374089,1705842638095,-13950.17458802,0.00027394,2]
[312374091,1705842638104,-228.45013421,0.00027395,2]
[312374093,1705842638114,-183.50987477,0.00027395,2]
[312374095,1705842638124,-323.47024933,0.00027395,2]
[312374097,1705842638134,-155.12177044,0.00027395,2]
[312374098,1705842638143,-156.440844,0.00027395,2]
[312374099,1705842638153,-154.99580922,0.00027395,2]
[312374100,1705842638162,-313.23857364,0.00027395,2]
[312374102,1705842638171,-157.22559662,0.00027395,2]
[312374103,1705842638181,-171.21200823,0.00027395,2]
[312374104,1705842638190,-528.33981378,0.00027395,2]
[312374106,1705842638199,-578.16940661,0.00027395,2]
[312374107,1705842638209,-155.38271252,0.00027395,2]
[312374108,1705842638218,-157.5113392,0.00027395,2]
[312374109,1705842638227,-667.19586272,0.00027395,2]
[312374110,1705842638236,-406.98672392,0.00027395,2]
[312374111,1705842638245,-329.46843563,0.00027395,2]
[312374112,1705842638254,-653.61556835,0.00027395,2]
[312374113,1705842638263,-5892.59541396,0.00027395,2]
[312374114,1705842638272,-193.28648632,0.00027395,2]
[312374115,1705842638281,-155.06577619,0.00027395,2]
[312374116,1705842638290,-414.70781485,0.00027395,2]
[312374117,1705842638299,-199.62558619,0.00027395,2]
[312374118,1705842638308,-196.339527,0.00027395,2]
[312374119,1705842638318,-155.67200944,0.00027395,2]
[312374120,1705842638328,-155.34695243,0.00027395,2]
[312374121,1705842638337,-663.80781284,0.00027395,2]
[312374122,1705842638346,-1589.56066404,0.00027395,2]
[312374123,1705842638355,-1122.92348176,0.00027395,2]
[312374124,1705842638365,-15909.91645662,0.00027395,2]
[312374125,1705842638375,-670.56653549,0.00027396,2]
[312374126,1705842638384,-18895.08975883,0.00027396,2]
[312374127,1705842638522,-363.7894806,0.00027397,2]
[312374128,1705842638531,-500.0,0.00027397,2]
[312374129,1705842638540,-500.0,0.00027397,2]
[312374130,1705842638550,-500.0,0.00027397,2]
[312374131,1705842638559,-286.77019817,0.00027397,2]
[312374132,1705842638568,-502.77,0.00027397,2]
[312374133,1705842638577,-500.0,0.00027397,2]
[312374134,1705842638586,-500.0,0.00027397,2]
[312374135,1705842638595,-500.0,0.00027397,2]
[312374136,1705842638604,-675.15,0.00027397,2]
[312374137,1705842638613,-792.94,0.00027397,2]
[312374138,1705842638623,-500.0,0.00027397,2]
[312374139,1705842638633,-500.0,0.00027397,2]
[312374140,1705842638646,-500.0,0.00027397,2]
[312374141,1705842638656,-500.0,0.00027397,2]
[312374142,1705842638666,-500.0,0.00027397,2]
[312374143,1705842638676,-500.0,0.00027397,2]
[312374144,1705842638685,-810.04,0.00027397,2]
[312374145,1705842638695,-500.0,0.00027397,2]
[312374146,1705842638704,-500.0,0.00027397,2]
[312374147,1705842638714,-500.0,0.00027397,2]
[312374148,1705842638724,-500.0,0.00027397,2]
[312374149,1705842638733,-500.0,0.00027397,2]
[312374150,1705842638742,-526.27,0.00027397,2]
[312374151,1705842638751,-500.0,0.00027397,2]
[312374152,1705842638760,-500.0,0.00027397,2]
[312374153,1705842638770,-472.17392242,0.00027397,2]
[312374154,1705842638779,-503.44840265,0.00027397,2]
[312374155,1705842638789,-274.77997287,0.00027397,2]
[312374156,1705842638799,-500.0,0.00027397,2]
[312374157,1705842638808,-500.0,0.00027397,2]
[312374158,1705842638818,-500.0,0.00027397,2]
[312374159,1705842638827,-917.77,0.00027397,2]
[312374160,1705842638837,-500.0,0.00027397,2]
[312374161,1705842638846,-500.0,0.00027397,2]
[312374162,1705842638856,-204.32141091,0.00027397,2]
[312374163,1705842638866,-500.0,0.00027397,2]
[312374164,1705842638877,-500.0,0.00027397,2]
[312374165,1705842638887,-500.0,0.00027397,2]
[312374166,1705842638896,-504.10624072,0.00027397,2]
[312374167,1705842638906,-500.0,0.00027397,2]
[312374168,1705842638915,-500.76303151,0.00027397,2]
[312374169,1705842638925,-500.0,0.00027397,2]
[312374170,1705842638935,-500.0,0.00027397,2]
[312374171,1705842638944,-500.0,0.00027397,2]
[312374172,1705842638953,-500.90581918,0.00027397,2]
[312374173,1705842638963,-500.0,0.00027397,2]
[312374174,1705842638972,-500.0,0.00027397,2]
[312374175,1705842638982,-500.0,0.00027397,2]
[312374176,1705842638991,-500.0,0.00027397,2]
[312374177,1705842639000,-1000.0,0.00027397,2]
[312374178,1705842639010,-500.0,0.00027397,2]
[312374179,1705842639019,-500.0,0.00027397,2]
[312374180,1705842639028,-512.65,0.00027397,2]
[312374181,1705842639038,-500.0,0.00027397,2]
[312374182,1705842639047,-614.91,0.00027397,2]
[312374183,1705842639056,-500.74589736,0.00027397,2]
[312374184,1705842639068,-500.0,0.00027397,2]
[312374185,1705842639078,-500.0,0.00027397,2]
[312374186,1705842639087,-500.0,0.00027397,2]
[312374187,1705842639096,-500.0,0.00027397,2]
[312374188,1705842639105,-500.0,0.00027397,2]
[312374189,1705842639114,-500.0,0.00027397,2]
[312374190,1705842639124,-1788.44,0.00027397,2]
[312374191,1705842639132,-509.51,0.00027397,2]
[312374192,1705842639142,-409.5588968,0.00027397,2]
[312374193,1705842639151,-500.0,0.00027397,2]
[312374194,1705842639160,-500.0,0.00027397,2]
[312374195,1705842639169,-500.0,0.00027397,2]
[312374196,1705842639179,-500.0,0.00027397,2]
[312374197,1705842639188,-500.0,0.00027397,2]
[312374198,1705842639197,-500.0,0.00027397,2]
[312374199,1705842639206,-500.0,0.00027397,2]
[312374200,1705842639215,-500.0,0.00027397,2]
[312374201,1705842639225,-898.55,0.00027397,2]
[312374202,1705842639234,-500.0,0.00027397,2]
[312374203,1705842639243,-500.0,0.00027397,2]
[312374204,1705842639252,-500.0,0.00027397,2]
[312374205,1705842639262,-637.23312708,0.00027397,2]
[312374206,1705842639271,-500.0,0.00027397,2]
[312374207,1705842639280,-500.0,0.00027397,2]
[312374208,1705842639290,-524.75,0.00027397,2]
[312374209,1705842639300,-500.0,0.00027397,2]
[312374210,1705842639308,-500.0,0.00027397,2]
[312374211,1705842639319,-598.57591787,0.00027397,2]
[312374212,1705842639328,-500.0,0.00027397,2]
[312374213,1705842639337,-882.44,0.00027397,2]
[312374214,1705842639346,-500.0,0.00027397,2]
[312374215,1705842639355,-500.0,0.00027397,2]
[312374216,1705842639365,-500.0,0.00027397,2]
[312374217,1705842639374,-500.0,0.00027397,2]
[312374218,1705842639383,-500.0,0.00027397,2]
[312374219,1705842639393,-500.0,0.00027397,2]
[312374220,1705842639402,-500.0,0.00027397,2]
[312374221,1705842639411,-500.0,0.00027397,2]
[312374222,1705842639420,-155.0,0.00027397,2]
[312374223,1705842639430,-500.0,0.00027397,2]
[312374224,1705842639439,-1000.0,0.00027397,2]
[312374225,1705842639448,-500.0,0.00027397,2]
[312374226,1705842639457,-627.55,0.00027397,2]
[312374227,1705842639467,-504.61396894,0.00027397,2]
[312374228,1705842639476,-580.29,0.00027397,2]
[312374229,1705842639484,-500.0,0.00027397,2]
[312374230,1705842639494,-500.0,0.00027397,2]
[312374231,1705842639503,-500.0,0.00027397,2]
[312374232,1705842639511,-1317.39,0.00027397,2]
[312374233,1705842639521,-500.0,0.00027397,2]
[312374234,1705842639530,-581.49926245,0.00027397,2]
[312374235,1705842639539,-500.0,0.00027397,2]
[312374236,1705842639548,-500.0,0.00027397,2]
[312374237,1705842639557,-500.0,0.00027397,2]
[312374238,1705842639567,-500.0,0.00027397,2]
[312374239,1705842639576,-529.18,0.00027397,2]
[312374240,1705842639586,-500.0,0.00027397,2]
[312374241,1705842639595,-500.0,0.00027397,2]
[312374242,1705842639605,-500.0,0.00027397,2]
[312374243,1705842639614,-533.97445114,0.00027397,2]
[312374244,1705842639624,-617.68,0.00027397,2]
[312374245,1705842639633,-510.83,0.00027397,2]
[312374246,1705842639646,-500.0,0.00027397,2]
[312374247,1705842639655,-514.71,0.00027397,2]
[312374248,1705842639664,-500.0,0.00027397,2]
[312374249,1705842639675,-500.0,0.00027397,2]
[312374250,1705842639685,-669.42,0.00027397,2]
[312374251,1705842639695,-565.55,0.00027397,2]
[312374252,1705842639705,-500.0,0.00027397,2]
[312374253,1705842639717,-500.0,0.00027397,2]
[312374254,1705842639726,-500.0,0.00027397,2]
[312374255,1705842639735,-525.72459261,0.00027397,2]
[312374256,1705842639746,-500.0,0.00027397,2]
[312374257,1705842639756,-597.8,0.00027397,2]
[312374258,1705842639766,-500.0,0.00027397,2]
[312374259,1705842639775,-335.79645869,0.00027397,2]
[312374260,1705842639785,-200.0,0.00027397,2]
[312374261,1705842639794,-396.65358356,0.00027397,2]
[312374262,1705842639804,-500.0,0.00027397,2]
[312374263,1705842639812,-500.0,0.00027397,2]
[312374264,1705842639822,-730.84,0.00027397,2]
[312374265,1705842639831,-500.0,0.00027397,2]
[312374266,1705842639840,-500.0,0.00027397,2]
[312374267,1705842639850,-1998.48,0.00027397,2]
[312374268,1705842639859,-500.0,0.00027397,2]
[312374269,1705842639873,-18197.98,0.00027397,2]
[312374270,1705842639886,-4547.27,0.00027397,2]
[312374271,1705842639899,-1452.05,0.00027397,2]
[312374272,1705842639912,-500.0,0.00027397,2]
[312374273,1705842639924,-1528.19,0.00027397,2]
[312374274,1705842639935,-871.89,0.00027397,2]
[312374275,1705842639946,-500.0,0.00027397,2]
[312374276,1705842639957,-839.25,0.00027397,2]
[312374278,1705842639970,-500.0,0.00027397,2]
[312374280,1705842639981,-515.04596927,0.00027397,2]
[312374282,1705842639993,-500.0,0.00027397,2]
[312374283,1705842640005,-459.96835433,0.00027397,2]
[312374284,1705842640016,-500.0,0.00027397,2]
[312374286,1705842640029,-10690.24,0.00027397,2]
[312374287,1705842640040,-7157.34,0.00027397,2]
[312374289,1705842640052,-500.0,0.00027397,2]
[312374290,1705842640063,-500.0,0.00027397,2]
[312374291,1705842640074,-500.0,0.00027397,2]
[312374292,1705842640084,-502.52181998,0.00027397,2]
[312374294,1705842640095,-500.0,0.00027397,2]
[312374296,1705842640106,-1020.69,0.00027397,2]
[312374298,1705842640117,-500.0,0.00027397,2]
[312374299,1705842640128,-813.29,0.00027397,2]
[312374300,1705842640140,-2410.24,0.00027397,2]
[312374301,1705842640151,-500.0,0.00027397,2]
[312374302,1705842640162,-500.0,0.00027397,2]
[312374303,1705842640172,-500.0,0.00027397,2]
[312374304,1705842640184,-500.0,0.00027397,2]
[312374305,1705842640196,-237.04279308,0.00027397,2]
[312374306,1705842640207,-500.0,0.00027397,2]
[312374307,1705842640217,-500.0,0.00027397,2]
[312374308,1705842640227,-6936.78,0.00027397,2]
[312374309,1705842640242,-3528.85,0.00027397,2]
[312374310,1705842640253,-975.43,0.00027397,2]
[312374311,1705842640263,-500.0,0.00027397,2]
[312374312,1705842640276,-192.19323195,0.00027397,2]
[312374313,1705842640288,-961.14,0.00027397,2]
[312374314,1705842640299,-1703.7,0.00027397,2]
[312374315,1705842640310,-500.0,0.00027397,2]
[312374316,1705842640320,-4804.2,0.00027397,2]
[312374317,1705842640332,-1699.56,0.00027397,2]
[312374318,1705842640343,-500.0,0.00027397,2]
[312374319,1705842640354,-6649.54,0.00027397,2]
[312374320,1705842640366,-500.0,0.00027397,2]
[312374321,1705842640379,-500.0,0.00027397,2]
[312374322,1705842640391,-1328.70885865,0.00027397,2]
[312374323,1705842640410,-251.78114135,0.00027397,2]
[312374324,1705842640422,-2292.82,0.00027397,2]
[312374325,1705842640434,-418.6938585,0.00027397,2]
[312374326,1705842640449,-81.3061415,0.00027397,2]
[312374327,1705842640460,-500.0,0.00027397,2]
[312374328,1705842640470,-500.0,0.00027397,2]
[312374329,1705842640480,-71.55169441,0.00027397,2]
[312374330,1705842640495,-428.44830559,0.00027397,2]
[312374331,1705842640507,-217.58022648,0.00027397,2]
[312374332,1705842640519,-500.0,0.00027397,2]
[312374333,1705842640530,-415.03975167,0.00027397,2]
[312374334,1705842640541,-500.0,0.00027397,2]
[312374335,1705842640551,-710.82104221,0.00027397,2]
[312374342,1705842640870,-331.76895779,0.00027397,2]
[312374344,1705842640881,-500.0,0.00027397,2]
[312374346,1705842640891,-500.0,0.00027397,2]
[312374347,1705842640903,-1053.18,0.00027397,2]
[312374348,1705842640916,-500.0,0.00027397,2]
[312374349,1705842640927,-500.0,0.00027397,2]
[312374350,1705842640938,-500.0,0.00027397,2]
[312374351,1705842640949,-500.0,0.00027397,2]
[312374352,1705842640960,-500.0,0.00027397,2]
[312374353,1705842640970,-938.05,0.00027397,2]
[312374354,1705842640981,-500.0,0.00027397,2]
[312374355,1705842640992,-589.3,0.00027397,2]
[312374356,1705842641004,-500.0,0.00027397,2]
[312374357,1705842641016,-500.0,0.00027397,2]
[312374358,1705842641028,-512.55,0.00027397,2]
[312374359,1705842641040,-123.10068485,0.00027397,2]
[312374360,1705842641090,-278.85833515,0.00027397,2]
[312374361,1705842641101,-500.0,0.00027397,2]